[Event "50th Ciudad Sevilla 2024"]
[Site "Sevilla"]
[Date "2025.01.15"]
[Round "6.15"]
[White "Saad, Gabriel"]
[Black "Bukal, Vladimir Jr."]
[Result "1-0"]
[Annotator "TA"]
[ECO "B10"]
[WhiteElo "2148"]
[BlackElo "2356"]
[PlyCount "97"]
[EventDate "2025.01.10"]
[EventType "swiss"]
[EventCountry "ESP"]
[SourceTitle "playchess.com"]
[Source "ChessBase"]
[SourceQuality "1"]
[TimeControl "5400+30"]

{[%evp 9,97,27,45,39,49,40,60,33,36,43,50,57,63,67,112,105,114,101,112,102,117,112,113,56,64,44,41,41,61,0,0,0,50,56,62,55,32,37,85,38,48,39,60,48,43,31,34,0,8,9,19,25,32,15,68,62,141,42,366,182,329,341,404,414,417,406,374,392,459,463,448,450,470,470,489,494,501,519,589,597,958,958,941,854,838,793,801,800,29994,29995]} 1. e4 {[%emt 0:00:02]} c6 {[%emt 0:00:21]} 2. Nf3 {[%emt 0:00:06]} d5 {[%emt 0:00:45]} 3. Nc3 {[%emt 0:00:02]} dxe4 {[%emt 0:00:27]} 4. Nxe4 {[%emt 0:00:02]} Nf6 {[%emt 0:00:09]} 5. Qe2 {[%emt 0:00:03]} Bf5 {[%emt 0:05:51]} 6. Nxf6+ {[%emt 0:00:06]} gxf6 {[%emt 0:00:05]} 7. d3 {[%emt 0:00:05]} e6 {[%emt 0:09:15]} 8. Bd2 {[%emt 0:00:05]} Na6 {[%emt 0:03:13][%cal Bb8a6,Ba6c7,Bc7e8,Be8g7][%mdl 32]} 9. a3 {[%emt 0:04:12]} Be7 {[%emt 0:11:34]} 10. g3 {[%emt 0:02:42]} Qb6 {[%emt 0:03:21]} 11. b4 {[%emt 0:06:07]} Nc7 {[%emt 0:04:20]} 12. Bg2 {[%emt 0:01:45]} O-O {[%emt 0:07:17][%cal Oa7a5]} 13. O-O {[%emt 0:00:32]} Rfd8 {[%emt 0:04:26]} 14. Rfb1 {[%emt 0:05:12]} Ne8 {[%emt 0:11:31]} 15. Be3 {[%emt 0:04:37]} Qc7 {[%emt 0:01:01]} 16. Nd4 {[%emt 0:02:14]} (16. a4 $16) 16... Bg6 $14 {[%emt 0:02:52]} 17. h4 {[%emt 0:02:34]} Ng7 {[%emt 0:01:04]} 18. Bf3 {[%emt 0:01:17]} h5 {[%emt 0:03:00]} 19. Kg2 {[%emt 0:10:56]} (19. Nb3 $14) 19... e5 $11 {[%emt 0:00:55]} 20. Nb3 {[%emt 0:00:32]} f5 {[%emt 0:00:10]} (20... Re8 $11) 21. Bh6 $1 $14 {[%emt 0:02:25]} Bf6 {[%emt 0:05:57][%cal Oe5e4]} 22. Bxg7 {[%emt 0:01:46]} Kxg7 {[%emt 0:00:14]} 23. Bxh5 {[%emt 0:01:09]} Bh7 {[%emt 0:03:50]} (23... e4 $14) 24. Rd1 {[%emt 0:05:12]} (24. Rh1 $16) 24... Re8 {[%emt 0:02:17]} 25. Rab1 {[%emt 0:02:12]} Kh8 {[%emt 0:03:06]} 26. Rh1 {[%emt 0:05:41]} Re7 {[%emt 0:02:59]} 27. Nd2 {[%emt 0:03:09][%cal Bb3d2,Bd2f3,Bf3g5][%mdl 32]} Rg8 {[%emt 0:05:30]} 28. Rbe1 {[%emt 0:02:46]} a5 {[%emt 0:00:17]} 29. Nf3 {[%emt 0:02:23]} axb4 {[%emt 0:00:19]} 30. axb4 {[%emt 0:00:37]} Qd6 {[%emt 0:03:11]} 31. Qd2 {[%emt 0:05:05]} e4 {[%emt 0:02:22]} ({Black should try} 31... f4 $1 $11) 32. Ng5 {[%emt 0:01:02]} Qd5 {[%emt 0:02:23]} (32... Kg7 $14) 33. Kg1 {[%emt 0:02:57]} (33. Qf4 $16 {and dxe4 should not be overlooked} Bxg5 (33... exd3+ $2 34. Bf3 $18) 34. hxg5) 33... Bd4 $2 {[%emt 0:00:55][%mdl 8192]} (33... Rge8 $14) 34. dxe4 {[%emt 0:03:40]} (34. Bxf7 $142 Qe5 (34... Rxf7 $2 35. dxe4 Bxf2+ 36. Qxf2 $18) 35. Bxg8 Bxg8 36. Kh2 (36. dxe4 $2 Qxg3+ 37. Kf1 Bc4+ 38. Re2 Qxf2#)) 34... fxe4 {[%emt 0:00:34]} (34... Qe5 {was called for.}) 35. Bxf7 $18 {[%emt 0:01:00]} Qe5 {[%emt 0:01:23]} 36. Bxg8 {[%emt 0:00:27]} e3 {[%emt 0:01:01]} 37. Rxe3 {[%emt 0:06:09]} (37. Nxh7 $2 {is the wrong capture.} Qxg3+ (37... exd2 $2 38. Rxe5 Rxe5 39. Kg2 $19) 38. fxg3 exd2+ 39. Kg2 Rxe1 $19 (39... dxe1=R $2 40. Rxe1 Rxe1 41. Bc4 $19) (39... dxe1=N+ $2 40. Kh2 $19) (39... dxe1=B $2 40. Bc4 $19)) 37... Bxe3 {[%emt 0:00:16]} 38. Qxe3 {[%emt 0:00:28]} Qxe3 {[%emt 0:00:39]} 39. fxe3 {[%emt 0:00:02][%cal Bf2e3,Be3e4,Be4e5,Be5e6][%mdl 32]} Bxg8 {[%emt 0:00:12][%mdl 4096] Endgame KRB-KRN. White is 3 pawns up.} 40. Kf2 {[%emt 0:01:23]} Rd7 {[%emt 0:00:05]} 41. Re1 {[%emt 0:00:53]} Bc4 {[%emt 0:00:26]} 42. e4 {[%emt 0:01:10]} Rd2+ {[%emt 0:00:41]} 43. Kf3 {[%emt 0:00:12]} Rxc2 {[%emt 0:00:30]} 44. e5 {[%emt 0:01:06]} Ra2 {[%emt 0:00:42]} 45. e6 {[%emt 0:00:39]} Ra8 {[%emt 0:00:06]} 46. Kf4 {[%emt 0:01:19]} Kg7 {[%emt 0:00:38]} 47. Rd1 {[%emt 0:01:33]} Kf6 {[%emt 0:01:02]} 48. Rd7 {[%emt 0:00:23] h5 would kill now.} Bd5 {[%emt 0:00:36]} 49. h5 {[%emt 0:00:40]} ({Not} 49. Rxb7 Bxe6 50. Ne4+ (50. Nxe6 Kxe6 51. h5 Rf8+ 52. Kg5 Rg8+ 53. Kh4 Kf5 $18) 50... Kg6 $18) 1-0

[Event "50th Ciudad Sevilla 2024"]
[Site "Sevilla"]
[Date "2025.01.15"]
[Round "6.16"]
[White "Campora, Daniel H."]
[Black "Rodriguez Pereira, Enrique"]
[Result "1-0"]
[Annotator "RC"]
[ECO "B74"]
[WhiteElo "2353"]
[BlackElo "2167"]
[PlyCount "65"]
[EventDate "2025.01.10"]
[EventType "swiss"]
[EventCountry "ESP"]
[SourceTitle "playchess.com"]
[Source "ChessBase"]
[SourceQuality "1"]
[TimeControl "5400+30"]

1. e4 {[%emt 0:00:04]} c5 {[%emt 0:01:06]} 2. Nf3 {[%emt 0:00:07]} Nc6 {[%emt 0:00:19]} 3. d4 {[%emt 0:00:44]} cxd4 {[%emt 0:00:08]} 4. Nxd4 {[%emt 0:00:15]} g6 {[%emt 0:00:08]} 5. Nc3 {[%emt 0:01:02]} Bg7 {[%emt 0:00:12]} 6. Be3 {[%emt 0:00:45]} Nf6 {[%emt 0:00:13]} 7. Be2 {[%emt 0:02:25]} O-O {[%emt 0:00:42]} 8. Nb3 {[%emt 0:01:53]} d6 {[%emt 0:02:02]} 9. O-O {[%emt 0:01:38]} Be6 {[%emt 0:01:17]} 10. f4 {[%emt 0:03:10]} Rc8 {[%emt 0:06:02]} 11. f5 {[%emt 0:02:18]} Bxb3 {[%emt 0:15:12]} 12. axb3 {[%emt 0:00:06]} a6 {[%emt 0:01:49]} 13. g4 {[%emt 0:02:16]} Nd7 {[%emt 0:04:24]} 14. g5 {[%emt 0:08:28]} Nb4 {[%emt 0:07:15]} 15. Qd2 {[%emt 0:06:45]} Qc7 {[%emt 0:04:24]} 16. Rf2 {[%emt 0:01:58]} Rfd8 {[%emt 0:16:15]} 17. Raf1 {[%emt 0:00:56]} Ne5 {[%emt 0:00:39]} 18. f6 {[%emt 0:03:00]} exf6 {[%emt 0:04:49]} 19. gxf6 {[%emt 0:01:05]} Bh8 {[%emt 0:00:06]} 20. Na4 {[%emt 0:11:12]} b5 {[%emt 0:04:48]} 21. Bb6 {[%emt 0:09:43]} Qb7 {[%emt 0:00:20]} 22. Bxd8 {[%emt 0:00:45]} Rxd8 {[%emt 0:02:38]} 23. Qxb4 {[%emt 0:02:46]} Nc6 {[%emt 0:00:10]} 24. Qc3 {[%emt 0:04:44]} bxa4 {[%emt 0:00:09]} 25. bxa4 {[%emt 0:00:11]} Ne5 {[%emt 0:01:05]} 26. Qd4 {[%emt 0:01:00]} Qc6 {[%emt 0:00:35]} 27. b3 {[%emt 0:01:16]} Nd7 {[%emt 0:02:13]} 28. a5 {[%emt 0:03:29]} Re8 {[%emt 0:00:29]} 29. Qd5 {[%emt 0:01:53]} Qc5 {[%emt 0:02:11]} 30. Bc4 {[%emt 0:01:41]} Ne5 {[%emt 0:00:21]} 31. Qxc5 {[%emt 0:00:56]} dxc5 {[%emt 0:00:04]} 32. Bxa6 {[%emt 0:00:13]} Ra8 {[%emt 0:00:14]} 33. Rd2 {[%emt 0:02:17]} 1-0

[Event "50th Ciudad Sevilla 2024"]
[Site "Sevilla"]
[Date "2025.01.15"]
[Round "6.17"]
[White "Navrotescu, Andreea"]
[Black "Chacon Perez, Juan"]
[Result "1/2-1/2"]
[Annotator "RC"]
[ECO "A18"]
[WhiteElo "2320"]
[BlackElo "2143"]
[PlyCount "84"]
[EventDate "2025.01.10"]
[EventType "swiss"]
[EventCountry "ESP"]
[SourceTitle "playchess.com"]
[Source "ChessBase"]
[SourceQuality "1"]
[TimeControl "5400+30"]

1. c4 {[%emt 0:00:05]} Nf6 {[%emt 0:00:41]} 2. Nc3 {[%emt 0:00:09]} e6 {[%emt 0:00:21]} 3. e4 {[%emt 0:00:45]} d5 {[%emt 0:02:08]} 4. e5 {[%emt 0:00:26]} d4 {[%emt 0:00:35]} 5. exf6 {[%emt 0:00:07]} dxc3 {[%emt 0:00:05]} 6. bxc3 {[%emt 0:00:05]} Qxf6 {[%emt 0:00:16]} 7. d4 {[%emt 0:02:06]} e5 {[%emt 0:01:51]} 8. Nf3 {[%emt 0:00:36]} exd4 {[%emt 0:00:13]} 9. Bg5 {[%emt 0:01:04]} Qe6+ {[%emt 0:06:08]} 10. Be2 {[%emt 0:00:09]} Be7 {[%emt 0:00:34]} 11. Bxe7 {[%emt 0:04:09]} d3 {[%emt 0:00:11]} 12. O-O {[%emt 0:07:01]} Qxe7 {[%emt 0:04:20]} 13. Bxd3 {[%emt 0:00:09]} O-O {[%emt 0:00:10]} 14. Qc2 {[%emt 0:03:14]} h6 {[%emt 0:00:47]} 15. Rfe1 {[%emt 0:02:12]} Qf6 {[%emt 0:00:47]} 16. Nd4 {[%emt 0:01:59]} Na6 {[%emt 0:04:39]} 17. Re3 {[%emt 0:00:51]} Nc5 {[%emt 0:03:14]} 18. Rae1 {[%emt 0:01:10]} Nxd3 {[%emt 0:01:57]} 19. Qxd3 {[%emt 0:00:08]} Bd7 {[%emt 0:00:35]} 20. c5 {[%emt 0:05:20]} Rfe8 {[%emt 0:01:55]} 21. Rxe8+ {[%emt 0:07:24]} Rxe8 {[%emt 0:00:04]} 22. Rxe8+ {[%emt 0:00:07]} Bxe8 {[%emt 0:00:04]} 23. Qe4 {[%emt 0:00:54]} Bc6 {[%emt 0:00:58]} 24. Nxc6 {[%emt 0:00:23]} bxc6 {[%emt 0:01:49]} 25. g3 {[%emt 0:03:08]} Qxc3 {[%emt 0:04:47]} 26. Qxc6 {[%emt 0:00:12]} Qa1+ {[%emt 0:00:05]} 27. Kg2 {[%emt 0:00:07]} Qxa2 {[%emt 0:00:04]} 28. Qxc7 {[%emt 0:00:44]} Qd5+ {[%emt 0:00:15]} 29. f3 {[%emt 0:00:25]} Qa2+ {[%emt 0:03:04]} 30. Kh3 {[%emt 0:00:10]} Qe6+ {[%emt 0:00:10]} 31. g4 {[%emt 0:00:13]} h5 {[%emt 0:04:54]} 32. c6 {[%emt 0:06:37]} hxg4+ {[%emt 0:00:17]} 33. Kg3 {[%emt 0:00:16]} Qe1+ {[%emt 0:03:10]} 34. Kxg4 {[%emt 0:00:33]} Qg1+ {[%emt 0:00:08]} 35. Qg3 {[%emt 0:02:03]} f5+ {[%emt 0:03:43]} 36. Kh5 {[%emt 0:07:39]} Qe3 {[%emt 0:01:54]} 37. f4 {[%emt 0:10:00]} Qe8+ {[%emt 0:00:13]} 38. Qg6 {[%emt 0:00:14]} Qe2+ {[%emt 0:00:12]} 39. Kh4 {[%emt 0:00:08]} Qxh2+ {[%emt 0:07:42]} 40. Kg5 {[%emt 0:00:08]} Qg2+ {[%emt 0:01:25]} 41. Kxf5 {[%emt 0:00:10]} Qc2+ {[%emt 0:00:03]} 42. Kg5 {[%emt 0:00:10]} Qg2+ {[%emt 0:00:05]} 1/2-1/2

[Event "50th Ciudad Sevilla 2024"]
[Site "Sevilla"]
[Date "2025.01.15"]
[Round "6.18"]
[White "Lasinskas, Povilas"]
[Black "Ouellet, Maili-Jade"]
[Result "0-1"]
[Annotator "RC"]
[ECO "B33"]
[WhiteElo "2099"]
[BlackElo "2319"]
[PlyCount "82"]
[EventDate "2025.01.10"]
[EventType "swiss"]
[EventCountry "ESP"]
[SourceTitle "playchess.com"]
[Source "ChessBase"]
[SourceQuality "1"]
[TimeControl "5400+30"]

1. e4 {[%emt 0:07:24]} c5 {[%emt 0:00:20]} 2. Nf3 {[%emt 0:00:08]} Nc6 {[%emt 0:00:19]} 3. d4 {[%emt 0:00:16]} cxd4 {[%emt 0:00:06]} 4. Nxd4 {[%emt 0:00:07]} Nf6 {[%emt 0:00:05]} 5. Nc3 {[%emt 0:00:33]} e5 {[%emt 0:00:05]} 6. Ndb5 {[%emt 0:00:32]} d6 {[%emt 0:00:04]} 7. Bg5 {[%emt 0:00:24]} a6 {[%emt 0:00:08]} 8. Na3 {[%emt 0:00:05]} b5 {[%emt 0:00:05]} 9. Nd5 {[%emt 0:00:15]} Be7 {[%emt 0:00:07]} 10. Bxf6 {[%emt 0:00:15]} Bxf6 {[%emt 0:00:05]} 11. c4 {[%emt 0:00:27]} b4 {[%emt 0:00:16]} 12. Nc2 {[%emt 0:00:05]} O-O {[%emt 0:00:18]} 13. Bd3 {[%emt 0:04:35]} a5 {[%emt 0:00:22]} 14. O-O {[%emt 0:00:13]} Bg5 {[%emt 0:01:05]} 15. b3 {[%emt 0:00:57]} Be6 {[%emt 0:05:10]} 16. a3 {[%emt 0:01:17]} bxa3 {[%emt 0:02:18]} 17. Rxa3 {[%emt 0:00:22]} g6 {[%emt 0:00:54]} 18. Qe2 {[%emt 0:02:34]} Rb8 {[%emt 0:01:28]} 19. Rb1 {[%emt 0:12:41]} Rb7 {[%emt 0:01:19]} 20. Qe1 {[%emt 0:11:28]} Qb8 {[%emt 0:01:41]} 21. Nc3 {[%emt 0:02:42]} Bd8 {[%emt 0:04:00]} 22. Nd5 {[%emt 0:13:27]} f5 {[%emt 0:04:15]} 23. b4 {[%emt 0:07:44]} Bxd5 {[%emt 0:07:42]} 24. exd5 {[%emt 0:03:42]} Nxb4 {[%emt 0:00:10]} 25. Nxb4 {[%emt 0:07:00]} axb4 {[%emt 0:00:58]} 26. Ra4 {[%emt 0:01:41]} e4 {[%emt 0:03:35]} 27. Bf1 {[%emt 0:06:02]} b3 {[%emt 0:01:35]} 28. Qe3 {[%emt 0:01:30]} b2 {[%emt 0:08:31]} 29. c5 {[%emt 0:00:35]} Rb3 {[%emt 0:00:52]} 30. Qf4 {[%emt 0:01:52]} dxc5 {[%emt 0:03:45]} 31. d6 {[%emt 0:00:05]} Rb4 {[%emt 0:00:51]} 32. Rxb4 {[%emt 0:03:24]} Qxb4 {[%emt 0:00:18]} 33. Qe5 {[%emt 0:00:05]} Bf6 {[%emt 0:00:56]} 34. Qe6+ {[%emt 0:00:09]} Kg7 {[%emt 0:00:42]} 35. g3 {[%emt 0:03:15]} Qd2 {[%emt 0:01:21]} 36. Qa2 {[%emt 0:02:52]} Bd4 {[%emt 0:00:55]} 37. Kh1 {[%emt 0:00:03]} Qxf2 {[%emt 0:00:54]} 38. Bg2 {[%emt 0:00:05]} Qc2 {[%emt 0:00:53]} 39. Rf1 {[%emt 0:00:28]} e3 {[%emt 0:01:05]} 40. d7 {[%emt 0:04:11]} e2 {[%emt 0:00:27]} 41. Rg1 {[%emt 0:00:55]} Qd1 {[%emt 0:00:35]} 0-1

[Event "50th Ciudad Sevilla 2024"]
[Site "Sevilla"]
[Date "2025.01.15"]
[Round "6.19"]
[White "Aamodt, Peder Marcus"]
[Black "Campos, Maria Jose"]
[Result "0-1"]
[Annotator "ChessBase"]
[ECO "D30"]
[WhiteElo "2082"]
[BlackElo "2271"]
[PlyCount "60"]
[EventDate "2025.01.10"]
[EventType "swiss"]
[EventCountry "ESP"]
[SourceTitle "playchess.com"]
[Source "ChessBase"]
[SourceQuality "1"]
[TimeControl "5400+30"]

1. d4 {[%emt 0:00:14]} d5 {[%emt 0:01:36]} 2. c4 {[%emt 0:00:17]} e6 {[%emt 0:00:17]} 3. Nf3 {[%emt 0:00:08]} Nf6 {[%emt 0:00:21]} 4. g3 {[%emt 0:00:08]} Nbd7 {[%emt 0:01:57]} 5. Bg2 {[%emt 0:01:20]} dxc4 {[%emt 0:00:20]} 6. O-O {[%emt 0:02:56]} c6 {[%emt 0:01:09]} 7. a4 {[%emt 0:05:41]} a5 {[%emt 0:00:07]} 8. Nc3 {[%emt 0:07:07]} h6 {[%emt 0:04:43]} 9. e4 {[%emt 0:06:25]} Bb4 {[%emt 0:08:59]} 10. Qe2 {[%emt 0:02:59]} O-O {[%emt 0:07:38]} 11. e5 {[%emt 0:13:14]} Nd5 {[%emt 0:00:02]} 12. Qxc4 {[%emt 0:02:26]} b5 {[%emt 0:00:10]} 13. Qb3 {[%emt 0:08:54]} bxa4 {[%emt 0:00:24]} 14. Qc2 {[%emt 0:00:27]} Ba6 {[%emt 0:00:58]} 15. Rd1 {[%emt 0:00:26]} a3 {[%emt 0:04:50]} 16. Ne4 {[%emt 0:03:18]} axb2 {[%emt 0:00:23]} 17. Bxb2 {[%emt 0:01:17]} Qe7 {[%emt 0:02:17]} 18. Nfd2 {[%emt 0:09:45]} Bb5 {[%emt 0:05:50]} 19. Nc4 {[%emt 0:05:25]} a4 {[%emt 0:02:19]} 20. Na3 {[%emt 0:00:51]} Rfc8 {[%emt 0:02:48]} 21. Bf1 {[%emt 0:03:29]} Rab8 {[%emt 0:03:55]} 22. Bd3 {[%emt 0:02:58]} Rc7 {[%emt 0:02:07]} 23. Bc1 {[%emt 0:03:33]} f5 {[%emt 0:06:13]} 24. exf6 {[%emt 0:03:31]} N7xf6 {[%emt 0:02:26]} 25. Nxf6+ {[%emt 0:07:41]} Qxf6 {[%emt 0:00:25]} 26. Nc4 {[%emt 0:00:06]} Bc3 {[%emt 0:02:28]} 27. Rb1 {[%emt 0:08:39]} Bxd4 {[%emt 0:02:34]} 28. Nd6 {[%emt 0:00:13]} Rf8 {[%emt 0:02:58]} 29. Ne4 {[%emt 0:00:51]} Qf3 {[%emt 0:01:05]} 30. Ba3 {[%emt 0:01:11]} Ne3 {[%emt 0:02:48]} 0-1

[Event "50th Ciudad Sevilla 2024"]
[Site "Sevilla"]
[Date "2025.01.15"]
[Round "6.20"]
[White "Pogorelov, Ruslan"]
[Black "Muzika, Paul"]
[Result "1-0"]
[Annotator "RC"]
[ECO "D38"]
[WhiteElo "2266"]
[BlackElo "2070"]
[PlyCount "145"]
[EventDate "2025.01.10"]
[EventType "swiss"]
[EventCountry "ESP"]
[SourceTitle "playchess.com"]
[Source "ChessBase"]
[SourceQuality "1"]
[TimeControl "5400+30"]

1. Nf3 {[%emt 0:00:06]} d5 {[%emt 0:00:09]} 2. d4 {[%emt 0:00:06]} Nf6 {[%emt 0:00:05]} 3. c4 {[%emt 0:00:08]} e6 {[%emt 0:00:04]} 4. Nc3 {[%emt 0:00:10]} Bb4 {[%emt 0:00:06]} 5. Qa4+ {[%emt 0:00:16]} Nc6 {[%emt 0:00:05]} 6. e3 {[%emt 0:00:10]} O-O {[%emt 0:00:07]} 7. Qc2 {[%emt 0:00:33]} dxc4 {[%emt 0:12:04]} 8. Bxc4 {[%emt 0:00:28]} Bd6 {[%emt 0:00:33]} 9. O-O {[%emt 0:08:41]} e5 {[%emt 0:03:16]} 10. d5 {[%emt 0:05:43]} Ne7 {[%emt 0:05:23]} 11. h3 {[%emt 0:01:22]} c6 {[%emt 0:13:33]} 12. dxc6 {[%emt 0:02:18]} Nxc6 {[%emt 0:00:25]} 13. a3 {[%emt 0:14:36]} Qe7 {[%emt 0:07:04]} 14. Ng5 {[%emt 0:01:26]} g6 {[%emt 0:07:25]} 15. Bd2 {[%emt 0:14:11]} Bf5 {[%emt 0:03:54]} 16. e4 {[%emt 0:12:59]} Nd4 {[%emt 0:02:44]} 17. Qd3 {[%emt 0:00:34]} Bd7 {[%emt 0:04:06]} 18. Nf3 {[%emt 0:14:39]} Ne6 {[%emt 0:02:49]} 19. Rad1 {[%emt 0:05:17]} Bc6 {[%emt 0:02:09]} 20. Rfe1 {[%emt 0:13:42]} Rad8 {[%emt 0:14:16]} 21. Qb1 {[%emt 0:00:12]} Bb8 {[%emt 0:04:18]} 22. Bh6 {[%emt 0:00:39]} Rxd1 {[%emt 0:02:13]} 23. Rxd1 {[%emt 0:00:44]} Rd8 {[%emt 0:01:00]} 24. Nd5 {[%emt 0:00:32]} Bxd5 {[%emt 0:02:38]} 25. exd5 {[%emt 0:00:16]} Ng7 {[%emt 0:03:09]} 26. Ng5 {[%emt 0:02:36]} Qd6 {[%emt 0:03:08]} 27. Ne4 {[%emt 0:00:18]} Nxe4 {[%emt 0:00:24]} 28. Qxe4 {[%emt 0:00:20]} Nf5 {[%emt 0:00:39]} 29. Bd2 {[%emt 0:00:30]} a6 {[%emt 0:02:44]} 30. Ba5 {[%emt 0:00:42]} Bc7 {[%emt 0:02:21]} 31. Bb4 {[%emt 0:00:24]} Qf6 {[%emt 0:00:18]} 32. Bc3 {[%emt 0:00:43]} Re8 {[%emt 0:01:34]} 33. f4 {[%emt 0:00:41]} Qh4 {[%emt 0:01:25]} 34. Qf3 {[%emt 0:00:57]} e4 {[%emt 0:00:37]} 35. Qf2 {[%emt 0:00:17]} Qxf2+ {[%emt 0:00:32]} 36. Kxf2 {[%emt 0:00:03]} Bb6+ {[%emt 0:00:11]} 37. Ke2 {[%emt 0:01:03]} Ne3 {[%emt 0:00:22]} 38. Bb3 {[%emt 0:00:27]} Nxd1 {[%emt 0:00:12]} 39. Bxd1 {[%emt 0:00:35]} Bc7 {[%emt 0:00:49]} 40. Ke3 {[%emt 0:00:18]} f5 {[%emt 0:00:43]} 41. g4 {[%emt 0:00:36]} g5 {[%emt 0:00:32]} 42. fxg5 {[%emt 0:00:22]} f4+ {[%emt 0:00:14]} 43. Kd2 {[%emt 0:00:20]} f3 {[%emt 0:00:40]} 44. Ke3 {[%emt 0:00:28]} Bb6+ {[%emt 0:00:20]} 45. Kf4 {[%emt 0:00:02]} Bc7+ {[%emt 0:00:59]} 46. Ke3 {[%emt 0:00:26]} Be5 {[%emt 0:00:36]} 47. Bb4 {[%emt 0:00:30]} Bxb2 {[%emt 0:00:19]} 48. d6 {[%emt 0:00:12]} Bc1+ {[%emt 0:00:07]} 49. Kf2 {[%emt 0:00:42]} Bxg5 {[%emt 0:00:00]} 50. Bb3+ {[%emt 0:00:00]} Kg7 {[%emt 0:00:00]} 51. d7 {[%emt 0:00:00]} Rd8 {[%emt 0:00:00]} 52. Be6 {[%emt 0:00:07]} Kf6 {[%emt 0:00:10]} 53. Bf5 {[%emt 0:00:25]} Bh4+ {[%emt 0:00:37]} 54. Ke3 {[%emt 0:00:13]} Bg5+ {[%emt 0:01:11]} 55. Kf2 {[%emt 0:00:40]} Ke5 {[%emt 0:00:36]} 56. Bc3+ {[%emt 0:00:32]} Kd5 {[%emt 0:00:11]} 57. Ba5 {[%emt 0:00:23]} Rf8 {[%emt 0:00:38]} 58. Bb4 {[%emt 0:00:09]} Rh8 {[%emt 0:01:10]} 59. Bc3 {[%emt 0:00:09]} Ra8 {[%emt 0:00:14]} 60. Bxh7 {[%emt 0:00:23]} Kc4 {[%emt 0:00:48]} 61. Ba5 {[%emt 0:00:50]} Kd3 {[%emt 0:00:33]} 62. Bf5 {[%emt 0:00:40]} Bh4+ {[%emt 0:00:14]} 63. Kf1 {[%emt 0:00:07]} b6 {[%emt 0:01:10]} 64. Be1 {[%emt 0:00:27]} Bxe1 {[%emt 0:00:36]} 65. Kxe1 {[%emt 0:00:02]} Ke3 {[%emt 0:00:31]} 66. h4 {[%emt 0:00:28]} Kf4 {[%emt 0:00:00]} 67. h5 {[%emt 0:00:24]} e3 {[%emt 0:00:00]} 68. h6 {[%emt 0:00:11]} b5 {[%emt 0:01:08]} 69. h7 {[%emt 0:00:10]} a5 {[%emt 0:00:19]} 70. Be6 {[%emt 0:00:27]} Rd8 {[%emt 0:01:23]} 71. g5 {[%emt 0:00:37]} Kg3 {[%emt 0:00:39]} 72. g6 {[%emt 0:00:50]} e2 {[%emt 0:00:27]} 73. g7 {[%emt 0:00:30]} 1-0